lending/lending_fUSD_20240622
["ID","MTS","AMOUNT","RATE_DAILY","PERIOD"]
[330132108,1719030632832,-155.25444498,0.00013324,2]
[330132109,1719030632842,-3140.62697719,0.000139,2]
[330132110,1719030632858,-297.86256585,0.000139,2]
[330132111,1719030632879,-2073.44385696,0.000139,2]
[330132112,1719030632888,-155.25444497,0.00015747,2]
[330132113,1719030632897,-524.56,0.00015847,2]
[330132114,1719030632907,-150.99,0.00015847,2]
[330132115,1719030632916,-150.0,0.00016926,2]
[330132116,1719030632925,-2752.73,0.00016927,2]
[330132117,1719030632935,-250.0,0.00017284,2]
[330132118,1719030632944,-250.0,0.00017331,2]
[330132119,1719030632955,-171.02,0.00017446,2]
[330132120,1719030632964,-165.11,0.00017455,2]
[330132121,1719030632974,-168.2,0.00017512,2]
[330132122,1719030632988,-165.11,0.0001791,2]
[330132123,1719030632998,-524.56,0.00018111,2]
[330132124,1719030633008,-184.45246775,0.00018164,2]
[330132125,1719030633019,-166.0,0.00018165,2]
[330132126,1719030633029,-617.0,0.00018165,2]
[330132127,1719030633038,-448.0,0.00018165,2]
[330132128,1719030633048,-442.0,0.00018165,2]
[330132129,1719030633058,-2060.93825679,0.00018165,2]
[330132130,1719030633071,-350.06174321,0.00018165,2]
[330132131,1719030633081,-1304.0,0.00018165,2]
[330132132,1719030633091,-3200.0,0.00018165,2]
[330132133,1719030633101,-1983.0,0.00018165,2]
[330132134,1719030633111,-547.0,0.00018165,2]
[330132135,1719030633121,-1068.0,0.00018165,2]
[330132136,1719030633131,-1272.0,0.00018165,2]
[330132137,1719030633141,-1654.0,0.00018165,2]
[330132138,1719030633151,-359.0,0.00018165,2]
[330132139,1719030633160,-5166.0,0.00018165,2]
[330132140,1719030633171,-1830.0,0.00018165,2]
[330132141,1719030633181,-165.11,0.00018365,2]
[330132142,1719030633190,-210.0,0.00018619,2]
[330132143,1719030633200,-1000.0,0.00018878,2]
[330132144,1719030633210,-2484.48105532,0.00018925,2]
[330132145,1719030633381,-7515.51894468,0.00018925,2]
[330132146,1719030633391,-2037.00243819,0.00018977,2]
[330132147,1719030633400,-305.04493689,0.00018977,2]
[330132148,1719030633410,-155.14782186,0.00018999,2]
[330132149,1719030633420,-296.42510962,0.00018999,2]
[330132150,1719030633429,-2889.7741,0.00019,2]
[330132151,1719030633439,-889.67079142,0.00019038,2]
[330132152,1719030633449,-1709.28903796,0.00019038,2]
[330132153,1719030633458,-319.26234854,0.00019078,2]
[330132154,1719030633468,-308.7402,0.00019078,2]
[330132155,1719030633478,-7500.0,0.00019078,2]
[330132156,1719030633488,-176.39461868,0.00019089,2]
[330132157,1719030633497,-785.7,0.0001909,3]
[330132158,1719030633511,-529.54043237,0.00019099,2]
[330132159,1719030633520,-19145.66591864,0.000191,2]
[330132160,1719030633532,-386.63737113,0.000191,2]
[330132161,1719030633543,-2603.71306986,0.000191,2]
[330132162,1719030633554,-943.26744094,0.000191,2]
[330132163,1719030633566,-574.32971375,0.000191,2]
[330132164,1719030633577,-35594.01276471,0.000191,2]
[330132165,1719030633588,-6241.64384186,0.000191,2]
[330132166,1719030633599,-2400.0,0.000191,2]
[330132167,1719030633611,-1852.97114235,0.000191,2]
[330132168,1719030633650,-331.5,0.000191,2]
[330132176,1719030638045,-155.0,0.00013081,2]
[330132177,1719030638055,-1000.0,0.00017402,2]
[330132178,1719030638065,-14.55400002,0.00018899,2]
[330132179,1719030638077,-264.54053448,0.00018899,2]
[330132180,1719030638089,-60.14554056,0.00018899,2]
[330132181,1719030638098,-155.0,0.00018999,2]
[330132182,1719030638108,-319.53232468,0.000191,2]
[330132183,1719030638120,-2067.86079862,0.000191,2]
[330132184,1719030638172,-4301.317335,0.000191,2]
[330132185,1719030638184,-813.90015,0.000191,2]
[330132186,1719030638196,-269.49698536,0.000191,2]
[330132187,1719030638215,-421.399227,0.000191,2]
[330132188,1719030638237,-6081.73346951,0.000191,2]
[330132189,1719030638250,-4209.38284784,0.000191,2]
[330132190,1719030638262,-548.096,0.000191,2]
[330132191,1719030638306,-2644.17619719,0.000191,2]
[330132192,1719030638319,-332.57131004,0.000191,2]
[330132193,1719030638343,-3265.55644233,0.00018165,2]
[330132194,1719030638356,-2198.40480559,0.00018165,2]
[330132211,1719030640215,-1192.61737407,0.00018165,2]
[330132212,1719030640404,-500.0,0.00018165,2]
[330132229,1719030643569,-1302.0,0.00018165,2]
[330132230,1719030643580,-29693.42137801,0.00018165,2]
[330132231,1719030643589,-1660.0,0.00018165,2]
[330132232,1719030643599,-166243.34856652,0.000191,2]
[330132233,1719030643608,-500.0,0.00019138,2]
[330132234,1719030643618,-502.0,0.00019178,2]
[330132235,1719030643627,-500.0,0.00019178,2]
[330132236,1719030643636,-500.0,0.00019178,2]
[330132237,1719030643645,-500.0,0.00019178,2]
[330132238,1719030643654,-591.48894635,0.00019178,2]
[330132239,1719030643662,-515.21401681,0.00019178,2]
[330132240,1719030643671,-500.0,0.00019178,2]
[330132241,1719030643681,-497.07080888,0.00019178,2]
[330132242,1719030643690,-500.0,0.00019178,2]
[330132244,1719030643700,-180.0,0.00019178,2]
[330132245,1719030643709,-500.0,0.00019178,2]
[330132246,1719030643720,-501.0682674,0.00019178,2]
[330132247,1719030643729,-535.98425001,0.00019178,2]
[330132248,1719030643738,-500.0,0.00019178,2]
[330132249,1719030643748,-500.0,0.00019178,2]
[330132250,1719030643757,-500.0,0.00019178,2]
[330132251,1719030643766,-500.0,0.00019178,2]
[330132252,1719030643775,-500.0,0.00019178,2]
[330132253,1719030643784,-655.99,0.00019178,2]
[330132254,1719030643794,-500.0,0.00019178,2]
[330132255,1719030643803,-500.0,0.00019178,2]
[330132256,1719030643814,-500.0,0.00019178,2]
[330132257,1719030643824,-500.0,0.00019178,2]
[330132258,1719030643833,-500.0,0.00019178,2]
[330132259,1719030643845,-500.0,0.00019178,2]
[330132260,1719030643856,-248.82308765,0.00019178,2]
[330132261,1719030643866,-500.0,0.00019178,2]
[330132262,1719030643877,-500.0,0.00019178,2]
[330132263,1719030643887,-640.71,0.00019178,2]
[330132264,1719030643897,-609.57,0.00019178,2]
[330132265,1719030643907,-551.77,0.00019178,2]
[330132266,1719030643916,-500.0,0.00019178,2]
[330132267,1719030643925,-497.27314759,0.00019178,2]
[330132268,1719030643934,-500.0,0.00019178,2]
[330132269,1719030643944,-500.0,0.00019178,2]
[330132270,1719030643953,-699.12,0.00019178,2]
[330132271,1719030643963,-558.61,0.00019178,2]
[330132272,1719030643972,-498.26674706,0.00019178,2]
[330132273,1719030643982,-500.0,0.00019178,2]
[330132274,1719030643991,-500.0,0.00019178,2]
[330132275,1719030644001,-500.0,0.00019178,2]
[330132276,1719030644011,-500.0,0.00019178,2]
[330132277,1719030644020,-500.0,0.00019178,2]
[330132278,1719030644030,-205.25545294,0.00019178,2]
[330132279,1719030644040,-500.0,0.00019178,2]
[330132280,1719030644049,-500.0,0.00019178,2]
[330132281,1719030644059,-597.75,0.00019178,2]
[330132282,1719030644069,-608.98231949,0.00019178,2]
[330132283,1719030644078,-500.0,0.00019178,2]
[330132284,1719030644088,-500.0,0.00019178,2]
[330132285,1719030644097,-500.0,0.00019178,2]
[330132286,1719030644107,-500.0,0.00019178,2]
[330132287,1719030644116,-500.0,0.00019178,2]
[330132288,1719030644126,-578.90497334,0.00019178,2]
[330132289,1719030644136,-1000.0,0.00019178,2]
[330132290,1719030644147,-500.0,0.00019178,2]
[330132291,1719030644156,-500.0,0.00019178,2]
[330132292,1719030644165,-500.0,0.00019178,2]
[330132293,1719030644175,-500.0,0.00019178,2]
[330132294,1719030644184,-529.14524383,0.00019178,2]
[330132295,1719030644194,-500.0,0.00019178,2]
[330132296,1719030644203,-539.54785791,0.00019178,2]
[330132297,1719030644213,-500.0,0.00019178,2]
[330132298,1719030644226,-500.0,0.00019178,2]
[330132299,1719030644235,-575.7,0.00019178,2]
[330132300,1719030644245,-500.0,0.00019178,2]
[330132301,1719030644254,-500.0,0.00019178,2]
[330132302,1719030644265,-511.17,0.00019178,2]
[330132303,1719030644274,-500.0,0.00019178,2]
[330132304,1719030644284,-500.0,0.00019178,2]
[330132305,1719030644294,-500.0,0.00019178,2]
[330132306,1719030644306,-240.3995645,0.00019178,2]
[330132307,1719030644315,-500.0,0.00019178,2]
[330132308,1719030644325,-500.0,0.00019178,2]
[330132309,1719030644336,-500.0,0.00019178,2]
[330132310,1719030644345,-500.0,0.00019178,2]
[330132311,1719030644354,-500.0,0.00019178,2]
[330132312,1719030644365,-500.0,0.00019178,2]
[330132313,1719030644375,-500.0,0.00019178,2]
[330132314,1719030644385,-500.0,0.00019178,2]
[330132315,1719030644394,-500.0,0.00019178,2]
[330132316,1719030644404,-500.0,0.00019178,2]
[330132317,1719030644414,-500.0,0.00019178,2]
[330132318,1719030644424,-579.77,0.00019178,2]
[330132319,1719030644434,-562.82,0.00019178,2]
[330132320,1719030644445,-518.87,0.00019178,2]
[330132321,1719030644456,-500.0,0.00019178,2]
[330132322,1719030644466,-500.0,0.00019178,2]
[330132323,1719030644476,-500.0,0.00019178,2]
[330132324,1719030644485,-500.0,0.00019178,2]
[330132325,1719030644496,-500.0,0.00019178,2]
[330132326,1719030644507,-500.0,0.00019178,2]
[330132327,1719030644517,-534.18107614,0.00019178,2]
[330132328,1719030644526,-500.0,0.00019178,2]
[330132329,1719030644535,-551.56668349,0.00019178,2]
[330132330,1719030644545,-500.0,0.00019178,2]
[330132331,1719030644554,-500.0,0.00019178,2]
[330132332,1719030644564,-500.0,0.00019178,2]
[330132333,1719030644573,-500.0,0.00019178,2]
[330132334,1719030644583,-500.0,0.00019178,2]
[330132335,1719030644593,-824.06,0.00019178,2]
[330132336,1719030644603,-500.0,0.00019178,2]
[330132337,1719030644613,-500.0,0.00019178,2]
[330132338,1719030644623,-500.0,0.00019178,2]
[330132339,1719030644632,-500.0,0.00019178,2]
[330132340,1719030644641,-717.89,0.00019178,2]
[330132341,1719030644650,-500.0,0.00019178,2]
[330132342,1719030644659,-500.0,0.00019178,2]
[330132343,1719030644669,-500.0,0.00019178,2]
[330132344,1719030644679,-500.0,0.00019178,2]
[330132345,1719030644688,-500.0,0.00019178,2]
[330132346,1719030644697,-587.19415094,0.00019178,2]
[330132347,1719030644707,-500.0,0.00019178,2]
[330132348,1719030644716,-500.0,0.00019178,2]
[330132349,1719030644725,-500.0,0.00019178,2]
[330132350,1719030644734,-500.0,0.00019178,2]
[330132351,1719030644744,-500.0,0.00019178,2]
[330132352,1719030644753,-500.0,0.00019178,2]
[330132353,1719030644763,-500.0,0.00019178,2]
[330132354,1719030644772,-500.0,0.00019178,2]
[330132355,1719030644781,-469.76499908,0.00019178,2]
[330132356,1719030644790,-500.0,0.00019178,2]
[330132357,1719030644799,-500.0,0.00019178,2]
[330132358,1719030644809,-500.0,0.00019178,2]
[330132359,1719030644818,-500.0,0.00019178,2]
[330132360,1719030644828,-500.0,0.00019178,2]
[330132361,1719030644837,-516.88582026,0.00019178,2]
[330132362,1719030644846,-500.0,0.00019178,2]
[330132363,1719030644856,-250.0,0.00019178,2]
[330132364,1719030644866,-500.0,0.00019178,2]
[330132365,1719030644875,-500.0,0.00019178,2]
[330132366,1719030644885,-501.91993845,0.00019178,2]
[330132367,1719030644895,-500.0,0.00019178,2]
[330132368,1719030644904,-1075.98,0.00019178,2]
[330132369,1719030644914,-500.0,0.00019178,2]
[330132370,1719030644923,-282.0825124,0.00019178,2]
[330132371,1719030644933,-500.0,0.00019178,2]
[330132372,1719030644942,-779.61,0.00019178,2]
[330132373,1719030644951,-500.0,0.00019178,2]
[330132374,1719030644961,-500.0,0.00019178,2]
[330132375,1719030644970,-500.0,0.00019178,2]
[330132376,1719030644979,-500.0,0.00019178,2]
[330132377,1719030644989,-500.0,0.00019178,2]
[330132378,1719030644999,-517.74,0.00019178,2]
[330132379,1719030645009,-526.65395101,0.00019178,2]
[330132380,1719030645018,-500.0,0.00019178,2]
[330132381,1719030645028,-1080.2,0.00019178,2]
[330132382,1719030645038,-500.0,0.00019178,2]
[330132383,1719030645047,-500.0,0.00019178,2]
[330132384,1719030645056,-500.0,0.00019178,2]
[330132385,1719030645066,-500.0,0.00019178,2]
[330132386,1719030645075,-500.0,0.00019178,2]
[330132387,1719030645085,-565.27,0.00019178,2]
[330132388,1719030645094,-500.0,0.00019178,2]
[330132389,1719030645104,-519.8148799,0.00019178,2]
[330132390,1719030645113,-500.0,0.00019178,2]
[330132391,1719030645123,-500.0,0.00019178,2]
[330132392,1719030645132,-763.61,0.00019178,2]
[330132393,1719030645142,-500.0,0.00019178,2]
[330132394,1719030645151,-504.66217811,0.00019178,2]
[330132395,1719030645161,-502.04049071,0.00019178,2]
[330132396,1719030645171,-500.0,0.00019178,2]
[330132397,1719030645180,-500.0,0.00019178,2]
[330132398,1719030645189,-481.16897904,0.00019178,2]
[330132399,1719030645199,-500.0,0.00019178,2]
[330132400,1719030645208,-500.0,0.00019178,2]
[330132401,1719030645222,-500.0,0.00019178,2]
[330132402,1719030645232,-925.49,0.00019178,2]
[330132403,1719030645242,-500.0,0.00019178,2]
[330132404,1719030645251,-500.0,0.00019178,2]
[330132405,1719030645263,-500.0,0.00019178,2]
[330132406,1719030645272,-500.0,0.00019178,2]
[330132407,1719030645281,-500.0,0.00019178,2]
[330132408,1719030645292,-500.0,0.00019178,2]
[330132409,1719030645306,-500.0,0.00019178,2]
[330132410,1719030645317,-500.0,0.00019178,2]
[330132411,1719030645328,-717.36,0.00019178,2]
[330132412,1719030645337,-500.0,0.00019178,2]
[330132413,1719030645347,-500.0,0.00019178,2]
[330132414,1719030645356,-500.0,0.00019178,2]
[330132415,1719030645365,-497.88623622,0.00019178,2]
[330132416,1719030645374,-500.0,0.00019178,2]
[330132417,1719030645384,-500.0,0.00019178,2]
[330132418,1719030645394,-500.0,0.00019178,2]
[330132419,1719030645403,-500.0,0.00019178,2]
[330132420,1719030645412,-500.0,0.00019178,2]
[330132421,1719030645422,-500.0,0.00019178,2]
[330132422,1719030645431,-500.0,0.00019178,2]
[330132423,1719030645440,-728.84,0.00019178,2]
[330132424,1719030645449,-500.0,0.00019178,2]
[330132425,1719030645459,-646.44,0.00019178,2]
[330132426,1719030645468,-500.0,0.00019178,2]
[330132427,1719030645477,-956.2,0.00019178,2]
[330132428,1719030645486,-500.0,0.00019178,2]
[330132429,1719030645495,-500.0,0.00019178,2]
[330132430,1719030645504,-500.0,0.00019178,2]
[330132431,1719030645515,-500.0,0.00019178,2]
[330132432,1719030645524,-731.47,0.00019178,2]
[330132433,1719030645534,-500.0,0.00019178,2]
[330132434,1719030645545,-500.0,0.00019178,2]
[330132435,1719030645555,-500.0,0.00019178,2]
[330132436,1719030645565,-505.66190533,0.00019178,2]
[330132437,1719030645576,-500.0,0.00019178,2]
[330132438,1719030645587,-500.0,0.00019178,2]
[330132439,1719030645596,-500.0,0.00019178,2]
[330132440,1719030645605,-500.0,0.00019178,2]
[330132441,1719030645614,-500.0,0.00019178,2]
[330132442,1719030645624,-500.0,0.00019178,2]
[330132443,1719030645633,-500.0,0.00019178,2]
[330132444,1719030645642,-1610.63,0.00019178,2]
[330132445,1719030645651,-500.0,0.00019178,2]
[330132446,1719030645660,-500.0,0.00019178,2]
[330132447,1719030645670,-500.0,0.00019178,2]
[330132448,1719030645679,-500.0,0.00019178,2]
[330132449,1719030645688,-721.61,0.00019178,2]
[330132450,1719030645698,-500.0,0.00019178,2]
[330132451,1719030645707,-500.0,0.00019178,2]
[330132452,1719030645716,-500.0,0.00019178,2]
[330132453,1719030645727,-500.0,0.00019178,2]
[330132454,1719030645738,-1535.64,0.00019178,2]
[330132455,1719030645747,-500.0,0.00019178,2]
[330132456,1719030645757,-500.0,0.00019178,2]
[330132457,1719030645767,-515.24303805,0.00019178,2]
[330132458,1719030645776,-542.6,0.00019178,2]
[330132459,1719030645786,-500.0,0.00019178,2]
[330132460,1719030645797,-559.00789724,0.00019178,2]
[330132461,1719030645807,-500.0,0.00019178,2]
[330132462,1719030645818,-500.0,0.00019178,2]
[330132463,1719030645827,-500.0,0.00019178,2]
[330132465,1719030645836,-500.0,0.00019178,2]
[330132466,1719030645845,-500.0,0.00019178,2]
[330132467,1719030645855,-500.0,0.00019178,2]
[330132468,1719030645865,-500.0,0.00019178,2]
[330132469,1719030645874,-847.23,0.00019178,2]
[330132470,1719030645883,-500.0,0.00019178,2]
[330132471,1719030645893,-528.47,0.00019178,2]
[330132472,1719030645902,-500.0,0.00019178,2]
[330132473,1719030645911,-543.87784206,0.00019178,2]
[330132474,1719030645920,-500.89491906,0.00019178,2]
[330132475,1719030645930,-526.72,0.00019178,2]
[330132476,1719030645938,-500.0,0.00019178,2]
[330132477,1719030645948,-500.0,0.00019178,2]
[330132478,1719030645957,-500.0,0.00019178,2]
[330132479,1719030645966,-500.0,0.00019178,2]
[330132480,1719030645976,-500.0,0.00019178,2]
[330132481,1719030645986,-500.0,0.00019178,2]
[330132482,1719030645995,-500.0,0.00019178,2]
[330132484,1719030646004,-500.0,0.00019178,2]
[330132486,1719030646015,-550.78422471,0.00019178,2]
[330132487,1719030646024,-500.0,0.00019178,2]
[330132488,1719030646033,-500.0,0.00019178,2]
[330132489,1719030646047,-500.0,0.00019178,2]
[330132491,1719030646056,-1214.31,0.00019178,2]
[330132493,1719030646066,-500.0,0.00019178,2]
[330132495,1719030646074,-500.0,0.00019178,2]
[330132497,1719030646084,-500.0,0.00019178,2]
[330132499,1719030646093,-500.0,0.00019178,2]
[330132501,1719030646102,-500.0,0.00019178,2]
[330132503,1719030646111,-158.1589198,0.00019178,2]
[330132505,1719030646120,-500.0,0.00019178,2]
[330132507,1719030646130,-500.0,0.00019178,2]
[330132509,1719030646139,-500.0,0.00019178,2]
[330132511,1719030646148,-500.0,0.00019178,2]
[330132512,1719030646157,-543.62147792,0.00019178,2]
[330132514,1719030646166,-520.87609611,0.00019178,2]
[330132515,1719030646174,-519.60217239,0.00019178,2]
[330132517,1719030646184,-544.52321956,0.00019178,2]
[330132519,1719030646193,-500.0,0.00019178,2]
[330132521,1719030646202,-500.0,0.00019178,2]
[330132523,1719030646211,-503.64,0.00019178,2]
[330132524,1719030646223,-500.0,0.00019178,2]
[330132525,1719030646232,-500.0,0.00019178,2]
[330132526,1719030646241,-517.95,0.00019178,2]
[330132527,1719030646250,-500.0,0.00019178,2]
[330132529,1719030646259,-500.0,0.00019178,2]
[330132531,1719030646272,-1552.54,0.00019178,2]
[330132533,1719030646281,-500.0,0.00019178,2]
[330132535,1719030646290,-500.0,0.00019178,2]
[330132537,1719030646302,-500.0,0.00019178,2]
[330132539,1719030646313,-500.0,0.00019178,2]
[330132541,1719030646322,-500.0,0.00019178,2]
[330132543,1719030646331,-500.0,0.00019178,2]
[330132545,1719030646341,-500.0,0.00019178,2]
[330132547,1719030646350,-500.0,0.00019178,2]
[330132548,1719030646359,-583.05,0.00019178,2]
[330132549,1719030646370,-500.0,0.00019178,2]
[330132550,1719030646545,-500.0,0.00019178,2]
[330132551,1719030646561,-500.0,0.00019178,2]
[330132552,1719030646571,-500.0,0.00019178,2]
[330132553,1719030646580,-600.95447767,0.00019178,2]
[330132554,1719030646589,-1115.83,0.00019178,2]
[330132555,1719030646598,-500.0,0.00019178,2]
[330132556,1719030646607,-500.0,0.00019178,2]
[330132557,1719030646616,-592.12,0.00019178,2]
[330132558,1719030646625,-500.0,0.00019178,2]
[330132559,1719030646635,-500.0,0.00019178,2]
[330132560,1719030646645,-500.0,0.00019178,2]
[330132561,1719030646655,-500.0,0.00019178,2]
[330132562,1719030646665,-500.0,0.00019178,2]
[330132563,1719030646675,-500.0,0.00019178,2]
[330132564,1719030646684,-500.0,0.00019178,2]
[330132565,1719030646695,-500.0,0.00019178,2]
[330132566,1719030646704,-500.0,0.00019178,2]
[330132567,1719030646713,-500.0,0.00019178,2]
[330132568,1719030646724,-500.0,0.00019178,2]
[330132569,1719030646733,-508.2,0.00019178,2]
[330132570,1719030646743,-500.0,0.00019178,2]
[330132571,1719030646753,-500.0,0.00019178,2]
[330132572,1719030646763,-500.0,0.00019178,2]
[330132573,1719030646775,-500.0,0.00019178,2]
[330132574,1719030646785,-500.0,0.00019178,2]
[330132575,1719030646795,-549.27,0.00019178,2]
[330132576,1719030646804,-500.0,0.00019178,2]
[330132577,1719030646813,-500.0,0.00019178,2]
[330132578,1719030646823,-500.0,0.00019178,2]
[330132579,1719030646833,-500.0,0.00019178,2]
[330132580,1719030646843,-500.0,0.00019178,2]
[330132581,1719030646853,-669.18,0.00019178,2]
[330132582,1719030646863,-500.0,0.00019178,2]
[330132583,1719030646872,-500.0,0.00019178,2]
[330132584,1719030646881,-500.0,0.00019178,2]
[330132585,1719030646891,-500.0,0.00019178,2]
[330132586,1719030646900,-500.0,0.00019178,2]
[330132587,1719030646911,-500.0,0.00019178,2]
[330132588,1719030646920,-500.0,0.00019178,2]
[330132589,1719030646930,-500.0,0.00019178,2]
[330132590,1719030646940,-500.0,0.00019178,2]
[330132591,1719030646949,-500.0,0.00019178,2]
[330132592,1719030646959,-500.0,0.00019178,2]
[330132593,1719030646969,-500.0,0.00019178,2]
[330132594,1719030646979,-500.0,0.00019178,2]
[330132595,1719030646989,-500.0,0.00019178,2]
[330132596,1719030647000,-500.0,0.00019178,2]
[330132597,1719030647009,-1157.22,0.00019178,2]
[330132598,1719030647020,-500.0,0.00019178,2]
[330132599,1719030647029,-500.0,0.00019178,2]
[330132600,1719030647039,-500.0,0.00019178,2]
[330132601,1719030647049,-500.0,0.00019178,2]
[330132602,1719030647058,-500.0,0.00019178,2]
[330132603,1719030647067,-500.0,0.00019178,2]
[330132604,1719030647076,-500.0,0.00019178,2]
[330132605,1719030647087,-1233.82,0.00019178,2]
[330132606,1719030647097,-551.1166488,0.00019178,2]
[330132607,1719030647107,-500.0,0.00019178,2]
[330132608,1719030647115,-500.0,0.00019178,2]
[330132609,1719030647125,-500.0,0.00019178,2]
[330132610,1719030647134,-1223.52,0.00019178,2]
[330132611,1719030647143,-640.43,0.00019178,2]
[330132612,1719030647153,-500.0,0.00019178,2]
[330132613,1719030647163,-500.0,0.00019178,2]
[330132614,1719030647172,-500.0,0.00019178,2]
[330132615,1719030647181,-500.0,0.00019178,2]
[330132616,1719030647191,-573.81152058,0.00019178,2]
[330132617,1719030647201,-500.0,0.00019178,2]
[330132618,1719030647211,-500.0,0.00019178,2]
[330132619,1719030647226,-500.0,0.00019178,2]
[330132620,1719030647235,-879.2,0.00019178,2]
[330132621,1719030647245,-500.0,0.00019178,2]
[330132622,1719030647254,-500.0,0.00019178,2]
[330132623,1719030647266,-500.0,0.00019178,2]
[330132624,1719030647276,-500.0,0.00019178,2]
[330132625,1719030647285,-713.29,0.00019178,2]
[330132626,1719030647295,-500.0,0.00019178,2]
[330132627,1719030647306,-1000.0,0.00019178,2]
[330132628,1719030647316,-500.0,0.00019178,2]
[330132629,1719030647325,-500.0,0.00019178,2]
[330132630,1719030647334,-500.0,0.00019178,2]
[330132631,1719030647343,-226.98177669,0.00019178,2]
[330132632,1719030647353,-1068.63,0.00019178,2]
[330132633,1719030647362,-500.0,0.00019178,2]
[330132634,1719030647371,-500.0,0.00019178,2]
[330132635,1719030647380,-500.0,0.00019178,2]
[330132636,1719030647390,-168.09892284,0.00019178,2]
[330132637,1719030647399,-500.0,0.00019178,2]
[330132638,1719030647408,-500.0,0.00019178,2]
[330132639,1719030647418,-310.39058456,0.00019178,2]
[330132640,1719030647427,-500.0,0.00019178,2]
[330132641,1719030647436,-500.0,0.00019178,2]
[330132642,1719030647445,-500.0,0.00019178,2]
[330132643,1719030647454,-554.18,0.00019178,2]
[330132644,1719030647463,-585.5482616,0.00019178,2]
[330132645,1719030647474,-501.95904878,0.00019178,2]
[330132646,1719030647483,-500.0,0.00019178,2]
[330132647,1719030647492,-500.0,0.00019178,2]
[330132648,1719030647502,-525.17,0.00019178,2]
[330132649,1719030647511,-500.0,0.00019178,2]
[330132650,1719030647521,-611.44144284,0.00019178,2]
[330132651,1719030647530,-500.0,0.00019178,2]
[330132652,1719030647540,-500.0,0.00019178,2]
[330132653,1719030647549,-500.0,0.00019178,2]
[330132654,1719030647559,-500.0,0.00019178,2]
[330132655,1719030647568,-500.0,0.00019178,2]
[330132656,1719030647578,-500.0,0.00019178,2]
[330132657,1719030647588,-583.80244313,0.00019178,2]
[330132658,1719030647597,-500.0,0.00019178,2]
[330132659,1719030647607,-500.0,0.00019178,2]
[330132660,1719030647616,-500.0,0.00019178,2]
[330132661,1719030647625,-304.19876844,0.00019178,2]
[330132662,1719030647634,-500.0,0.00019178,2]
[330132663,1719030647644,-500.0,0.00019178,2]
[330132664,1719030647653,-500.0,0.00019178,2]
[330132665,1719030647663,-898.0,0.00019178,2]
[330132666,1719030647673,-500.0,0.00019178,2]
[330132667,1719030647682,-500.0,0.00019178,2]
[330132668,1719030647692,-500.0,0.00019178,2]
[330132669,1719030647701,-343.79879192,0.00019178,2]
[330132670,1719030647711,-1251.83,0.00019178,2]
[330132671,1719030647721,-500.0,0.00019178,2]
[330132672,1719030647730,-500.0,0.00019178,2]
[330132673,1719030647739,-500.24481904,0.00019178,2]
[330132674,1719030647749,-500.0,0.00019178,2]
[330132675,1719030647759,-500.0,0.00019178,2]
[330132676,1719030647768,-678.09,0.00019178,2]